bitfinex/quotes_SOLUSD_20260314
["timestamp","ask_amount","ask_price","bid_price","bid_amount"]
[1773461711235,11.2995627,88.499,88.462,11.30428884]
[1773461711433,11.2995627,88.499,88.463,0.47425725]
[1773461711839,39.54846946,88.499,88.463,0.47425725]
[1773461712742,0.48096045,88.489,88.463,0.47425725]
[1773461715228,0.48096045,88.488,88.463,0.47425725]
[1773461717553,0.48096045,88.488,88.465,0.47425725]
[1773461718060,0.48096045,88.496,88.471,0.47425725]
[1773461719361,0.48096045,88.496,88.464,11.30403327]
[1773461719362,0.48096045,88.494,88.465,0.47425725]
[1773461721951,0.47994285,88.492,88.467,0.49021726]
[1773461724651,0.47994285,88.49,88.467,0.49021726]
[1773461725245,0.47994285,88.49,88.461,0.49021726]
[1773461726436,0.47994285,88.49,88.462,0.49021726]
[1773461726950,0.47994285,88.493,88.471,0.49021726]
[1773461727133,0.47994285,88.492,88.471,0.49021726]
[1773461727950,11.30041347,88.493,88.442,0.49021726]
[1773461727951,0.47994285,88.479,88.442,0.49021726]
[1773461728642,0.47994285,88.479,88.451,0.49021726]
[1773461728838,11.78218747,88.478,88.451,0.49021726]
[1773461729150,0.47994285,88.477,88.451,0.49021726]
[1773461730448,11.78244296,88.476,88.451,0.49021726]
[1773461732553,11.78244296,88.476,88.453,0.49021726]
[1773461732756,0.47994285,88.475,88.453,0.49021726]
[1773461734662,11.30275561,88.474,88.453,0.49021726]
[1773461738263,0.47994285,88.474,88.453,0.49021726]
[1773461740381,11.78282621,88.473,88.453,0.49021726]
[1773461740569,0.47994285,88.472,88.453,0.49021726]
[1773461741564,11.30313888,88.471,88.453,0.49021726]
[1773461741867,0.47994285,88.47,88.453,0.49021726]
[1773461742051,0.47994285,88.459,88.44,0.2]
[1773461742251,0.47994285,88.459,88.44,1e-08]
[1773461742656,0.47994285,88.459,88.43,0.49021726]
[1773461743574,0.47994285,88.459,88.422,0.49021726]
[1773461746467,11.30480001,88.458,88.431,0.47428893]
[1773461746670,11.30480001,88.458,88.441,0.47428893]
[1773461746869,0.47566134,88.476,88.451,0.47428893]
[1773461748760,0.47566134,88.474,88.441,0.47428893]
[1773461750472,0.47566134,88.472,88.441,0.47428893]
[1773461750976,11.30288336,88.473,88.411,0.47428893]
[1773461750977,0.47566134,88.449,88.411,0.47428893]
[1773461751171,0.49853139,88.439,88.411,0.47428893]
[1773461751368,0.49853139,88.444,88.412,0.47683476]
[1773461751674,0.49853139,88.439,88.41,0.2]
[1773461752469,0.49853139,88.427,88.41,0.2]
[1773461753779,0.49853139,88.425,88.41,0.2]
[1773461754079,0.49853139,88.419,88.4,0.1]
[1773461756683,0.49853139,88.417,88.4,0.1]
[1773461760965,11.3101701,88.416,88.4,0.1]
[1773461761153,0.49853139,88.415,88.4,0.1]
[1773461761776,0.49853139,88.436,88.401,0.47683476]
[1773461762079,0.49853139,88.446,88.421,0.47683476]
[1773461762287,0.49853139,88.456,88.421,0.47683476]
[1773461763570,0.49853139,88.454,88.421,0.47683476]
[1773461764065,0.49853139,88.454,88.422,0.47683476]
[1773461765460,0.49853139,88.452,88.422,0.47683476]
[1773461767080,0.49853139,88.449,88.416,0.47683476]
[1773461768563,0.49853139,88.447,88.416,0.47683476]
[1773461768973,0.49853139,88.429,88.4,0.1]
[1773461769159,0.49853139,88.419,88.4,0.1]
[1773461770565,0.49853139,88.417,88.4,0.1]
[1773461772180,0.49853139,88.417,88.4,0.42729093]
[1773461773075,0.49853139,88.417,88.4,0.1]
[1773461773281,11.3101701,88.416,88.4,0.1]
[1773461773484,11.80870149,88.416,88.4,0.1]
[1773461775282,0.49853139,88.424,88.401,0.32729093]
[1773461777478,11.30927473,88.423,88.401,0.32729093]
[1773461777686,0.49853139,88.422,88.401,0.32729093]
[1773461778983,0.49853139,88.42,88.4,0.1]
[1773461780392,0.49853139,88.431,88.401,0.32729093]
[1773461781282,0.49765858,88.429,88.4,0.1]
[1773461782376,39.58022345,88.428,88.4,0.1]
[1773461782687,0.49765858,88.427,88.4,0.1]
[1773461782892,0.49765858,88.427,88.4,0.42729093]
[1773461783089,0.49765858,88.427,88.401,0.32729093]
[1773461785415,11.30889105,88.426,88.402,11.31196126]
[1773461785576,11.30889105,88.426,88.403,0.32729093]
[1773461786882,0.49765858,88.426,88.403,0.32729093]
[1773461788885,28.26861564,88.438,88.4,3.72434315]
[1773461788886,11.30862884,88.429,88.405,0.32729093]
[1773461789072,11.30862884,88.429,88.411,0.32729093]
[1773461792496,0.49765858,88.437,88.411,0.32729093]
[1773461792497,11.30761228,88.436,88.411,0.32729093]
[1773461792695,0.49765858,88.435,88.411,0.32729093]
[1773461795492,0.49765858,88.433,88.411,0.32729093]
[1773461795695,11.30786801,88.434,88.411,0.32729093]
[1773461796084,11.80552659,88.434,88.411,0.32729093]
[1773461796301,0.49765858,88.433,88.411,0.32729093]
[1773461797504,0.49765858,88.431,88.413,0.32729093]
[1773461798807,0.49765858,88.436,88.413,0.32729093]
[1773461800188,11.30722871,88.439,88.415,0.32729093]
[1773461800503,0.49765858,88.438,88.415,0.32729093]
[1773461800899,0.49765858,88.438,88.417,0.32729093]
[1773461801092,7.2,88.44,88.417,0.32729093]
[1773461801294,18.50719217,88.44,88.417,0.32729093]
[1773461801500,19.00485075,88.44,88.417,0.32729093]
[1773461801805,19.00485075,88.44,88.4,0.1]
[1773461801806,0.49765858,88.439,88.401,0.32729093]
[1773461802703,0.49765858,88.437,88.405,0.32729093]
[1773461807013,0.46095566,88.435,88.411,0.32729093]
[1773461810513,0.46095566,88.435,88.413,0.32729093]
[1773461812319,0.47678331,88.433,88.413,0.32729093]
[1773461812616,0.47678331,88.433,88.409,0.32729093]
[1773461813524,0.47678331,88.431,88.409,0.32729093]
[1773461814922,11.3083795,88.43,88.409,0.32729093]
[1773461815222,0.47678331,88.429,88.409,0.32729093]
[1773461817821,11.30863527,88.428,88.409,0.32729093]
[1773461818022,0.47678331,88.427,88.409,0.32729093]
[1773461819514,11.78567436,88.426,88.409,0.32729093]
[1773461823426,0.47678331,88.425,88.409,0.32729093]
[1773461826443,3.6254809,88.44,88.401,0.32729093]
[1773461826444,0.47678331,88.423,88.401,0.32729093]
[1773461827545,0.47678331,88.423,88.402,11.31196126]
[1773461827751,0.47678331,88.421,88.403,0.32729093]
[1773461830124,0.47678331,88.419,88.391,0.32729093]
[1773461830331,0.47678331,88.419,88.391,11.64065993]
[1773461831755,0.47678331,88.417,88.387,11.64115278]
[1773461832164,0.47678331,88.417,88.39,11.51340893]
[1773461833731,0.47678331,88.415,88.39,11.51340893]
[1773461834956,0.47678331,88.413,88.391,0.32729093]
[1773461840538,0.47678331,88.413,88.392,11.31324101]
[1773461840747,0.47678331,88.413,88.393,0.32729093]
[1773461843670,0.47678331,88.413,88.395,0.32729093]
[1773461846151,0.47678331,88.413,88.396,11.31272908]
[1773461846353,11.30910619,88.425,88.4,3.6254809]
[1773461846553,0.4841348,88.438,88.401,0.32729093]
[1773461846749,0.4841348,88.438,88.411,0.32729093]
[1773461848470,0.4841348,88.436,88.411,0.32729093]
[1773461848676,0.4841348,88.436,88.413,0.32729093]
[1773461850450,11.30748442,88.437,88.413,0.32729093]
[1773461850776,0.4841348,88.441,88.415,0.32729093]
[1773461850777,0.4841348,88.44,88.415,0.32729093]
[1773461853886,11.30722871,88.439,88.415,0.32729093]
[1773461854086,0.4841348,88.438,88.415,0.32729093]
[1773461854794,11.30722871,88.439,88.417,0.32729093]
[1773461855695,11.79136351,88.439,88.417,0.32729093]
[1773461855998,0.4841348,88.438,88.417,0.32729093]
[1773461858691,0.4841348,88.436,88.417,0.32729093]
[1773461860797,0.4841348,88.436,88.419,0.32729093]
[1773461863490,11.79185994,88.436,88.419,0.32729093]
[1773461863695,0.4841348,88.435,88.414,0.32729093]
[1773461865882,0.4841348,88.433,88.414,0.32729093]
[1773461866696,0.4841348,88.433,88.41,3.6254809]
[1773461866697,0.4841348,88.433,88.416,0.32729093]
[1773461867477,11.30741678,88.438,88.416,0.32729093]
[1773461867478,0.49081896,88.437,88.416,0.32729093]
[1773461867697,11.30741678,88.438,88.416,0.32729093]
[1773461868095,11.30741678,88.438,88.418,0.32729093]
[1773461868295,0.49081896,88.441,88.418,0.32729093]
[1773461868598,11.79791981,88.44,88.418,0.32729093]
[1773461868797,0.49081896,88.439,88.418,0.32729093]
[1773461868977,0.49081896,88.459,88.421,0.32729093]
[1773461869177,0.49081896,88.458,88.421,0.32729093]
[1773461869893,0.49081896,88.458,88.431,0.32729093]
[1773461870096,0.49081896,88.456,88.431,0.32729093]
[1773461872501,0.48742452,88.454,88.431,0.32729093]
[1773461873603,0.48742452,88.452,88.431,0.32729093]
[1773461875604,0.48742452,88.452,88.423,0.32729093]
[1773461876807,0.48742452,88.45,88.423,0.32729093]
[1773461878405,0.48742452,88.448,88.425,0.32729093]
[1773461878602,0.48742452,88.448,88.419,0.32729093]
[1773461879011,0.48742452,88.448,88.421,0.32729093]
[1773461882598,0.48742452,88.446,88.422,0.32729093]
[1773461885613,11.79388616,88.445,88.422,0.32729093]
[1773461885813,0.48742452,88.444,88.422,0.32729093]
[1773461886596,0.48742452,88.444,88.424,0.32729093]
[1773461893015,0.48742452,88.448,88.424,0.32729093]
[1773461897613,11.30620597,88.447,88.424,0.32729093]
[1773461897803,0.48742452,88.446,88.424,0.32729093]
[1773461900402,0.48742452,88.446,88.426,0.32729093]
[1773461903202,0.48753074,88.444,88.41,3.62401275]
[1773461903506,0.48753074,88.444,88.411,0.32729093]
[1773461904314,0.48753074,88.442,88.42,3.95130368]
[1773461904520,0.48753074,88.442,88.421,0.32729093]
[1773461904816,0.48753074,88.442,88.42,3.62401275]
[1773461904817,39.56645288,88.459,88.422,0.45944862]
[1773461906718,0.48753074,88.458,88.424,0.45944862]
[1773461907110,0.48753074,88.458,88.431,0.45944862]
[1773461908723,0.48753074,88.456,88.431,0.45944862]
[1773461909706,11.30518342,88.455,88.431,0.45944862]
[1773461909905,0.48753074,88.454,88.431,0.45944862]
[1773461912621,0.48753074,88.452,88.423,11.30920872]
[1773461912824,0.48753074,88.452,88.424,0.45944862]
[1773461915627,11.30569467,88.451,88.424,0.45944862]
[1773461915820,0.48753074,88.45,88.424,0.45944862]
[1773461918232,0.48753074,88.448,88.425,0.45944862]
[1773461925644,0.48753074,88.448,88.427,0.45944862]
[1773461928948,0.49922313,88.446,88.427,0.45944862]
[1773461931950,0.46825042,88.444,88.427,0.45944862]
[1773461939651,0.46825042,88.444,88.42,3.62401275]
[1773461939652,0.46825042,88.442,88.421,0.48015183]
[1773461939957,0.46825042,88.448,88.421,0.48015183]
[1773461940353,0.46825042,88.448,88.431,0.48015183]
[1773461944757,0.46825042,88.448,88.427,0.48015183]
[1773461945062,0.46825042,88.446,88.421,0.48015183]
[1773461946640,0.46825042,88.446,88.412,39.58738631]
[1773461946641,0.46825042,88.451,88.432,11.30812375]
[1773461946839,0.46825042,88.451,88.433,0.48015183]
[1773461948661,0.46825042,88.451,88.429,0.48015183]
[1773461949861,0.46825042,88.449,88.422,0.48015183]
[1773461950158,0.46825042,88.449,88.406,105.18015183]
[1773461950339,0.46825042,88.449,88.41,3.6239376]
[1773461950539,0.46825042,88.449,88.411,0.48015183]
[1773461954659,0.46825042,88.447,88.411,0.48015183]
[1773461955460,0.46825042,88.447,88.413,0.48015183]
[1773461955970,0.46825042,88.447,88.421,0.48015183]
[1773461957670,0.46825042,88.445,88.421,0.48015183]
[1773461960652,0.46825042,88.443,88.421,0.48015183]
[1773461960955,0.46825042,88.448,88.431,0.48015183]
[1773461962568,28.26190065,88.459,88.431,0.48015183]
[1773461962569,11.78118095,88.447,88.431,0.48015183]
[1773461965565,11.78122481,88.447,88.431,0.48015183]
[1773461966354,0.47497498,88.446,88.431,0.48015183]
[1773461967377,11.30646164,88.445,88.431,0.48015183]
[1773461969682,0.47497498,88.458,88.431,0.48015183]
[1773461970061,0.47497498,88.457,88.431,0.48015183]
[1773461971658,0.47497498,88.455,88.431,0.48015183]
[1773461975680,0.47497498,88.453,88.431,0.48015183]
[1773461977778,11.30467224,88.459,88.441,0.45210393]
[1773461978374,11.77964722,88.459,88.441,0.45210393]
[1773461980675,0.47497498,88.458,88.441,0.45210393]
[1773461981877,11.77990279,88.457,88.441,0.45210393]
[1773461982077,0.47497498,88.456,88.441,0.45210393]
[1773461988067,0.49503023,88.454,88.431,11.30820649]
[1773461988274,0.49503023,88.454,88.432,0.48867725]
[1773461989783,0.49503023,88.452,88.432,0.48867725]
[1773461993288,0.48156237,88.467,88.441,0.45970369]
[1773461996694,0.48156237,88.465,88.441,0.45970369]
[1773461999894,0.48156237,88.463,88.441,0.45970369]
[1773462001886,7.2,88.472,88.43,3.6239376]
[1773462001887,0.48156237,88.461,88.43,3.6239376]
[1773462002087,0.48156237,88.461,88.43,4.08364129]
[1773462002290,0.48156237,88.461,88.431,0.45970369]
[1773462002488,0.48156237,88.459,88.422,0.45970369]
[1773462003080,0.48156237,88.459,88.431,0.45970369]
[1773462003587,0.48156237,88.459,88.441,0.45970369]
[1773462003776,0.48156237,88.457,88.431,0.45970369]
[1773462005093,0.48156237,88.457,88.427,11.76842843]
[1773462005294,0.48156237,88.457,88.431,0.45970369]
[1773462006401,0.48156237,88.455,88.431,0.45970369]
[1773462011204,11.30531123,88.454,88.431,0.45970369]
[1773462011385,0.48156237,88.453,88.431,0.45970369]
[1773462016405,28.26072211,88.462,88.432,0.45970369]
[1773462018399,11.30454442,88.46,88.432,0.45970369]
[1773462018600,0.48156237,88.459,88.432,0.45970369]
[1773462020799,0.48156237,88.457,88.432,0.45970369]
[1773462023718,11.30505562,88.456,88.432,0.45970369]
[1773462023899,0.46495268,88.455,88.432,0.45970369]
[1773462025819,11.30531123,88.454,88.432,0.45970369]
[1773462026624,11.77026391,88.454,88.432,0.45970369]
[1773462029721,0.46495268,88.453,88.432,0.45970369]
[1773462030820,28.26072211,88.462,88.432,0.45970369]
[1773462031023,0.46495268,88.459,88.432,0.45970369]
[1773462032728,11.30480001,88.458,88.432,0.45970369]
[1773462032908,0.46495268,88.457,88.432,0.45970369]
[1773462035729,11.30505562,88.456,88.432,0.45970369]
[1773462035927,0.46495268,88.455,88.432,0.45970369]
[1773462046035,0.46495268,88.453,88.432,0.45970369]
[1773462052056,7.65709721,88.467,88.433,11.30799588]
[1773462052262,0.45709721,88.469,88.441,0.45116817]
[1773462053540,0.45709721,88.467,88.443,0.45116817]
[1773462058146,0.45709721,88.465,88.443,0.45116817]
[1773462059765,0.45709721,88.463,88.443,0.45116817]
[1773462062568,11.30428884,88.462,88.431,11.30819404]
[1773462062775,0.45709721,88.461,88.431,11.30819404]
[1773462064264,0.45709721,88.461,88.43,3.62307541]
[1773462064771,0.45709721,88.459,88.431,0.45116817]
[1773462065860,0.45709721,88.457,88.431,0.45116817]
[1773462067554,11.30505562,88.456,88.431,0.45116817]
[1773462067753,0.45709721,88.455,88.431,0.45116817]
[1773462074880,0.45709721,88.453,88.431,0.45116817]
[1773462080482,11.30556686,88.452,88.431,0.45116817]
[1773462080665,0.45709721,88.451,88.431,0.45116817]
[1773462084700,0.49765374,88.449,88.419,0.48308742]
[1773462084873,0.49765374,88.449,88.41,3.62333482]
[1773462085070,0.49765374,88.439,88.4,3.62333482]
[1773462085977,0.49765374,88.429,88.4,3.62333482]
[1773462086891,0.49765374,88.427,88.4,3.62333482]
[1773462087393,0.49765374,88.427,88.394,7.2]
[1773462087693,0.49765374,88.419,88.391,0.36212845]
[1773462088278,11.30863527,88.428,88.401,0.36212845]
[1773462088570,11.30863527,88.428,88.4,3.62333482]
[1773462088571,0.49765374,88.427,88.411,0.36212845]
[1773462089389,0.49765374,88.425,88.401,0.36212845]
[1773462091597,0.49765374,88.423,88.396,0.36212845]
[1773462091897,0.49765374,88.423,88.401,0.36212845]
[1773462095992,0.49765374,88.423,88.403,0.36212845]
[1773462096407,0.49765374,88.421,88.403,0.36212845]
[1773462098104,0.49765374,88.419,88.399,0.36212845]
[1773462098279,0.49765374,88.424,88.401,0.36212845]
[1773462098489,0.49765374,88.428,88.401,0.36212845]
[1773462099398,0.49765374,88.428,88.402,11.31196126]
[1773462099601,0.49765374,88.428,88.403,0.36212845]
[1773462100200,28.26603177,88.446,88.411,0.36212845]
[1773462100201,0.49765374,88.432,88.411,0.36212845]
[1773462109006,0.48540893,88.43,88.411,0.36212845]
[1773462109605,0.5,88.434,88.41,3.62333482]
[1773462110000,0.5,88.434,88.4,3.62333482]
[1773462110811,0.5,88.432,88.41,3.62333482]
[1773462113816,0.5,88.43,88.41,3.62333482]
[1773462121310,0.5,88.43,88.411,11.31080974]
[1773462121617,3.62333482,88.46,88.42,3.62333482]
[1773462121917,3.62333482,88.46,88.43,3.62333482]
[1773462121918,0.5,88.456,88.43,3.62333482]
[1773462122703,0.5,88.456,88.424,11.30913351]
[1773462125822,0.5,88.454,88.424,11.30913351]
[1773462128917,0.5,88.452,88.424,11.30913351]
[1773462130207,0.5,88.452,88.43,3.62396451]
[1773462131523,0.5,88.452,88.431,11.30825163]
[1773462135836,0.5,88.452,88.44,3.62396451]
[1773462136042,7.2,88.465,88.44,3.62396451]
[1773462136637,28.25361836,88.485,88.441,0.46329885]
[1773462136825,11.30288336,88.473,88.45,3.62396451]
[1773462137029,11.30288336,88.473,88.444,0.46329885]
[1773462137642,11.30288336,88.473,88.44,4.08726336]
[1773462138022,0.47954477,88.47,88.44,4.08726336]
[1773462139748,0.47954477,88.47,88.432,0.46329885]
[1773462139925,0.47954477,88.459,88.421,0.46329885]
[1773462140731,0.47954477,88.459,88.43,3.62396451]
[1773462142043,39.56680005,88.458,88.43,3.62396451]
[1773462142235,0.46647584,88.457,88.43,3.62396451]
[1773462142540,0.46647584,88.457,88.416,11.31016322]
[1773462142748,0.46647584,88.457,88.42,3.62396451]
[1773462142943,0.46647584,88.457,88.421,0.47593945]
[1773462144447,39.56769467,88.456,88.421,0.47593945]
[1773462144740,0.46647584,88.455,88.421,0.47593945]
[1773462146845,11.30531123,88.454,88.421,0.47593945]
[1773462147040,0.46647584,88.453,88.421,0.47593945]
[1773462149150,0.46647584,88.451,88.421,0.47593945]
[1773462151351,0.46647584,88.449,88.431,0.47593945]
[1773462156448,11.30607814,88.448,88.431,0.47593945]
[1773462157036,28.25782955,88.472,88.44,3.62396451]
[1773462157237,28.25782955,88.472,88.441,0.47593945]
[1773462159046,0.46647584,88.471,88.441,0.47593945]
[1773462161862,0.46647584,88.469,88.441,0.47593945]
[1773462164060,0.46647584,88.467,88.441,0.47593945]
[1773462168459,0.48956498,88.465,88.441,0.47593945]
[1773462172566,11.76164731,88.464,88.441,0.47593945]
[1773462173065,0.45761404,88.463,88.441,0.47593945]
[1773462174065,0.45761404,88.461,88.441,0.47593945]
[1773462180370,0.45761404,88.473,88.45,3.62396451]
[1773462180578,0.45761404,88.469,88.433,0.46372238]
[1773462182654,0.45761404,88.467,88.433,0.46372238]
[1773462185979,0.45761404,88.465,88.433,0.46372238]
[1773462188478,11.76036965,88.474,88.451,0.46372238]
[1773462188683,0.45761404,88.473,88.441,0.46372238]
[1773462191568,11.30301112,88.472,88.441,0.46372238]
[1773462191882,0.45761404,88.471,88.441,0.46372238]
[1773462192378,0.45761404,88.471,88.442,11.30684516]
[1773462192582,0.45761404,88.471,88.443,0.46372238]
[1773462194384,11.30326664,88.47,88.451,0.46372238]
[1773462195686,11.76088068,88.47,88.451,0.46372238]
[1773462197185,0.45761404,88.469,88.451,0.46372238]
[1773462200869,11.30352217,88.468,88.451,0.46372238]
[1773462203575,0.4846867,88.468,88.451,0.46372238]
[1773462206900,0.4846867,88.466,88.451,0.46372238]
[1773462213304,0.4846867,88.464,88.42,0.47313441]
[1773462213472,0.4846867,88.459,88.426,0.47313441]
[1773462214294,0.4846867,88.459,88.431,0.47313441]
[1773462215078,0.4846867,88.457,88.433,0.47313441]
[1773462216215,0.4846867,88.457,88.441,0.47313441]
[1773462217790,0.4846867,88.455,88.433,0.47313441]
[1773462221903,11.30531123,88.454,88.433,0.47313441]
[1773462222106,11.30531123,88.454,88.427,0.47313441]
[1773462222107,0.4846867,88.453,88.427,0.47313441]
[1773462222297,0.4846867,88.453,88.43,3.62250483]
[1773462222802,0.4846867,88.453,88.431,0.47313441]
[1773462224904,11.30556686,88.452,88.431,0.47313441]
[1773462225109,0.4846867,88.451,88.431,0.47313441]
[1773462227797,0.4846867,88.451,88.433,0.48078831]
[1773462230503,0.47505096,88.439,88.38,0.1]
[1773462230707,0.47505096,88.409,88.38,0.58078831]
[1773462233801,0.48338428,88.399,88.373,0.46122755]
[1773462234316,0.48338428,88.407,88.373,0.46122755]
[1773462235584,0.48338428,88.414,88.381,0.46122755]
[1773462235894,11.30967586,88.42,88.391,0.46122755]
[1773462237888,11.30967586,88.42,88.392,11.31324101]
[1773462238096,11.30967586,88.42,88.393,0.46122755]
[1773462239608,14.93218069,88.42,88.393,0.46122755]
[1773462239911,14.93218069,88.42,88.394,11.31298504]
[1773462240115,14.93218069,88.42,88.395,0.46122755]
[1773462240703,3.62250483,88.43,88.395,0.46122755]
[1773462240901,11.30850739,88.429,88.395,0.46122755]
[1773462242200,11.30850739,88.429,88.396,11.31272908]
[1773462242418,11.30850739,88.429,88.397,0.46122755]
[1773462243914,0.48338428,88.428,88.397,0.46122755]
[1773462245409,3.62250483,88.42,88.397,0.46122755]
[1773462247200,3.62250483,88.42,88.399,0.46122755]
[1773462249023,11.79214744,88.427,88.399,0.46122755]
[1773462250520,0.48338428,88.419,88.399,0.46122755]
[1773462252320,0.48338428,88.417,88.399,0.46122755]
[1773462254614,0.48338428,88.409,88.378,0.46122755]
[1773462254803,0.48338428,88.399,88.371,0.46122755]
[1773462256517,0.48338428,88.397,88.374,0.46122755]
[1773462260222,0.48338428,88.395,88.374,0.46122755]
[1773462260805,0.48338428,88.395,88.376,0.46122755]
[1773462262725,0.48338428,88.395,88.377,11.31516118]
[1773462262910,0.48338428,88.395,88.378,0.48772276]
[1773462275630,0.48338428,88.395,88.37,0.2]
[1773462275631,39.59544765,88.394,88.37,0.2]
[1773462275836,0.49112463,88.393,88.37,0.2]
[1773462276140,0.49112463,88.393,88.37,0.68772276]
[1773462276344,0.49112463,88.393,88.371,0.48772276]
[1773462279145,0.49112463,88.391,88.371,0.48772276]
[1773462282342,11.313497,88.39,88.371,0.48772276]
[1773462282542,11.3129954,88.394,88.371,0.48772276]
[1773462282738,11.80412003,88.394,88.371,0.48772276]
[1773462282944,0.49112463,88.393,88.371,0.48772276]
[1773462283451,0.49112463,88.393,88.373,0.48772276]
[1773462285448,11.3129954,88.394,88.36,3.72737541]
[1773462285449,0.192319,88.389,88.362,0.48772276]
[1773462286440,0.192319,88.387,88.362,0.48772276]
[1773462287556,3.62737541,88.38,88.362,0.48772276]
[1773462287940,0.192319,88.381,88.362,0.48772276]
[1773462298864,11.31477709,88.38,88.362,0.48772276]
[1773462302160,28.28438249,88.388,88.362,0.48772276]
[1773462302470,11.31362499,88.389,88.362,0.48772276]
[1773462302648,11.50594399,88.389,88.362,0.48772276]
[1773462302848,0.192319,88.388,88.362,0.48772276]
[1773462305464,11.313881,88.387,88.362,0.48772276]
[1773462306465,0.192319,88.387,88.362,0.48772276]
[1773462309062,11.314009,88.386,88.362,0.48772276]
[1773462309659,0.192319,88.385,88.362,0.48772276]
[1773462311665,0.092319,88.369,88.348,0.49079233]
[1773462311852,0.092319,88.363,88.348,0.49079233]
[1773462312367,3.62737541,88.36,88.348,0.49079233]
[1773462312566,3.62737541,88.36,88.341,0.49079233]
[1773462312762,11.31746624,88.359,88.341,0.49079233]
[1773462314369,0.092319,88.358,88.341,0.49079233]
[1773462314852,0.092319,88.358,88.336,0.49079233]
[1773462318056,11.31746624,88.359,88.32,0.1]
[1773462318057,3.63238362,88.35,88.32,0.1]
[1773462318257,3.63238362,88.34,88.32,0.1]
[1773462319070,7.22,88.35,88.31,0.1]
[1773462319071,3.63238362,88.33,88.31,0.1]
[1773462319260,4.12272502,88.33,88.31,0.1]
[1773462320269,11.8116515,88.329,88.31,0.1]
[1773462321074,11.8116515,88.329,88.311,0.46642679]
[1773462321776,0.49900998,88.328,88.311,0.46642679]
[1773462326791,0.49900998,88.326,88.31,0.1]
[1773462327961,0.49900998,88.319,88.292,0.46642679]
[1773462328382,0.49900998,88.319,88.295,0.46642679]
[1773462328570,11.32272017,88.318,88.295,0.46642679]
[1773462328885,0.49900998,88.317,88.295,0.46642679]
[1773462330784,0.49900998,88.317,88.29,11.42626942]
[1773462330785,0.49900998,88.317,88.3,0.56642679]
[1773462332280,11.32297658,88.316,88.3,0.56642679]
[1773462332781,0.49900998,88.315,88.3,0.56642679]
[1773462333574,0.49900998,88.32,88.3,0.56642679]
[1773462338890,0.49900998,88.318,88.3,0.56642679]
[1773462342774,11.82185835,88.317,88.3,0.56642679]
[1773462345578,0.49900998,88.336,88.302,0.46642679]
[1773462345773,0.49900998,88.342,88.311,0.46642679]
[1773462351083,0.45467075,88.34,88.313,0.47529331]
[1773462351684,11.31977224,88.341,88.313,0.47529331]
[1773462351890,11.31977224,88.341,88.312,11.32348944]
[1773462351891,11.31977224,88.341,88.321,0.47529331]
[1773462352100,0.45467075,88.34,88.321,0.47529331]
[1773462356690,11.32002852,88.339,88.312,11.32348944]
[1773462356890,11.77469927,88.339,88.312,11.32348944]
[1773462357813,28.29742725,88.348,88.312,11.32348944]
[1773462358111,0.45467075,88.338,88.312,11.32348944]
[1773462358703,0.45467075,88.338,88.313,0.47529331]
[1773462360608,0.45467075,88.349,88.315,0.47529331]
[1773462360810,3.63238362,88.35,88.315,0.47529331]
[1773462360811,11.31900347,88.347,88.315,0.47529331]
[1773462361113,0.45467075,88.346,88.315,0.47529331]
[1773462363106,0.45467075,88.346,88.317,0.47529331]
[1773462364908,0.45467075,88.346,88.318,11.32272017]
[1773462365092,0.45467075,88.346,88.319,0.47529331]
[1773462366093,0.45467075,88.346,88.321,0.47529331]
[1773462367317,0.45467075,88.344,88.321,0.47529331]
[1773462369021,0.45467075,88.344,88.323,0.47529331]
[1773462369912,0.45467075,88.344,88.322,8.9683518]
[1773462371711,0.45467075,88.344,88.323,0.47529331]
[1773462373910,0.45467075,88.342,88.323,0.47529331]
[1773462375502,0.45467075,88.342,88.318,0.47529331]
[1773462378114,0.45467075,88.342,88.32,0.47529331]
[1773462379601,0.45467075,88.34,88.32,0.47529331]
[1773462379806,0.45467075,88.34,88.315,11.79831301]
[1773462380523,0.45467075,88.338,88.316,0.47529331]
[1773462384622,11.32028481,88.337,88.316,0.47529331]
[1773462384837,0.45365599,88.336,88.316,0.47529331]
[1773462385141,0.45365599,88.336,88.318,0.46373838]
[1773462387631,0.45365599,88.342,88.318,0.46373838]
[1773462391812,0.45365599,88.34,88.318,0.46373838]
[1773462392211,0.45365599,88.35,88.321,0.46373838]
[1773462392416,3.63283043,88.37,88.331,0.46373838]
[1773462392916,11.31618554,88.369,88.341,0.46373838]
[1773462393828,11.31618554,88.369,88.343,0.46373838]
[1773462394416,0.45365599,88.368,88.343,0.46373838]
[1773462396023,11.31644165,88.367,88.343,0.46373838]
[1773462396227,0.45365599,88.366,88.343,0.46373838]
[1773462398123,11.31669778,88.365,88.343,0.46373838]
[1773462398325,0.45365599,88.364,88.343,0.46373838]
[1773462401236,0.45365599,88.362,88.343,0.46373838]
[1773462401440,0.45365599,88.362,88.343,11.31943897]
[1773462401646,0.45365599,88.362,88.344,0.46373838]
[1773462404952,39.60216793,88.379,88.344,0.46373838]
[1773462405262,0.45365599,88.378,88.351,0.46373838]
[1773462407537,0.47679844,88.376,88.351,0.46373838]